bitfinex/quotes_ETHUSD_20240730
["timestamp","ask_amount","ask_price","bid_price","bid_amount"]
[1722356747514,3.00611,3326.6,3326.1,3.0]
[1722356747740,3.00611,3326.6,3326.5,0.16025828]
[1722356747944,3.00611,3326.6,3326.1,3.0]
[1722356748261,3.00617,3326.5,3326.0,6.632198]
[1722356748410,3.55599,3326.7,3326.2,0.16042423]
[1722356748411,3.00607,3326.6,3326.2,0.16042423]
[1722356748616,0.55,3326.7,3326.1,3.0]
[1722356748816,3.55599,3326.7,3326.2,0.16042423]
[1722356749039,3.55599,3326.7,3326.1,3.0]
[1722356749250,3.55599,3326.7,3326.2,0.16042423]
[1722356749757,3.00608,3326.6,3326.1,3.0]
[1722356750058,3.00608,3326.6,3326.2,0.16042423]
[1722356750440,3.00626,3326.4,3326.0,2.4552]
[1722356750650,3.00626,3326.4,3326.1,0.16047955]
[1722356750956,3.00616,3326.5,3326.1,0.16047955]
[1722356751516,3.00626,3326.4,3326.1,0.16047955]
[1722356752758,3.55604,3326.7,3326.1,0.16047955]
[1722356752759,3.00614,3326.6,3326.1,0.16047955]
[1722356753460,3.00616,3326.5,3326.1,0.16047955]
[1722356753761,0.55,3326.7,3326.1,3.46824955]
[1722356753973,3.00595,3326.8,3326.2,3.60473759]
[1722356754265,6.01191,3326.8,3326.3,0.16055937]
[1722356754558,3.00604,3326.7,3326.3,0.16055937]
[1722356755118,3.00604,3326.7,3326.1,3.30776]
[1722356755329,3.00604,3326.7,3326.4,0.16050406]
[1722356755646,3.00604,3326.7,3326.5,0.16044874]
[1722356756063,3.00604,3326.7,3326.1,3.30776]
[1722356756258,3.00604,3326.7,3326.6,0.16039343]
[1722356756413,3.00604,3326.7,3326.1,3.30776]
[1722356756616,3.00604,3326.7,3326.2,0.16061469]
[1722356756842,3.00604,3326.7,3326.1,3.30776]
[1722356757042,3.00604,3326.7,3326.2,0.16061469]
[1722356757226,5.66386,3326.9,3326.3,3.0063]
[1722356757453,5.66386,3326.9,3326.1,3.30776]
[1722356757454,3.00598,3326.7,3326.4,0.16050406]
[1722356757812,3.00598,3326.7,3326.1,4.19003845]
[1722356758012,3.00607,3326.6,3326.2,0.16061469]
[1722356758216,3.00607,3326.6,3326.1,3.00643]
[1722356758419,3.00607,3326.6,3326.2,0.16061469]
[1722356758653,3.00607,3326.6,3326.1,3.00643]
[1722356758869,3.00607,3326.6,3326.3,0.16055937]
[1722356759154,3.00607,3326.6,3326.2,0.16061469]
[1722356759372,3.00607,3326.6,3326.4,0.16050406]
[1722356759533,3.00607,3326.6,3326.3,0.16055937]
[1722356759864,3.00607,3326.6,3326.4,0.16050406]
[1722356760028,0.55,3326.8,3326.4,0.16050406]
[1722356760029,3.00599,3326.7,3326.4,0.16050406]
[1722356760218,3.00599,3326.7,3326.1,3.30773]
[1722356760417,3.00599,3326.7,3326.1,4.49069946]
[1722356760618,3.00608,3326.6,3326.2,0.16061469]
[1722356760855,3.00608,3326.6,3326.0,5.4618]
[1722356761058,3.00608,3326.6,3326.3,0.16055937]
[1722356761358,3.00599,3326.7,3326.1,3.00652]
[1722356761559,3.55589,3326.8,3326.4,0.16050406]
[1722356761762,3.55589,3326.8,3326.2,3.00642]
[1722356761961,3.55589,3326.8,3326.5,0.16047822]
[1722356762264,3.55589,3326.8,3326.6,0.16042291]
[1722356762265,3.00599,3326.7,3326.6,0.16042291]
[1722356762634,3.00599,3326.7,3326.1,3.30782]
[1722356762824,3.00599,3326.7,3326.2,0.16063737]
[1722356763170,3.00599,3326.7,3326.1,3.30782]
[1722356763327,3.00617,3326.5,3326.0,2.4552]
[1722356763525,0.55,3326.8,3326.2,0.16063737]
[1722356763723,3.00629,3326.4,3326.1,0.16069269]
[1722356763970,0.55,3326.8,3326.3,0.16057978]
[1722356764176,3.00634,3326.3,3326.2,0.1606351]
[1722356764341,3.00644,3326.2,3325.6,8.70067]
[1722356764543,3.00626,3326.4,3325.7,3.00688]
[1722356764788,3.00617,3326.5,3325.8,4.14737]
[1722356764967,3.00607,3326.6,3326.0,3.00659]
[1722356765138,3.00626,3326.4,3325.8,4.14737]
[1722356765338,3.00626,3326.4,3325.8,4.44867]
[1722356765752,3.00607,3326.6,3325.8,4.44867]
[1722356765753,3.00607,3326.6,3325.9,3.0067]
[1722356765979,3.00607,3326.6,3326.0,38.0066]
[1722356766181,3.00598,3326.7,3326.1,7.90672695]
[1722356766363,10.048,3327.3,3326.3,3.00633]
[1722356766364,3.00566,3327.1,3326.3,3.00633]
[1722356766564,3.00566,3327.1,3326.4,3.0663177]
[1722356766861,6.01151,3327.0,3326.4,3.0062]
[1722356767061,3.00573,3327.0,3326.2,3.00642]
[1722356767265,1.109,3326.7,3326.3,3.7969927]
[1722356767682,3.00544,3327.3,3326.5,3.00607]
[1722356767880,1.109,3327.1,3326.6,3.00606]
[1722356768039,1.109,3327.1,3326.4,2.6365]
[1722356768365,1.109,3327.1,3326.8,3.00588]
[1722356768538,1.109,3327.1,3326.9,3.00574]
[1722356768745,1.109,3327.1,3326.8,3.00588]
[1722356768956,1.109,3327.1,3326.7,3.00597]
[1722356769282,3.00543,3327.4,3326.7,3.00589]
[1722356769789,3.00553,3327.2,3326.6,6.01207]
[1722356769933,3.00535,3327.4,3326.7,3.00593]
[1722356770133,3.00535,3327.4,3326.8,3.00585]
[1722356770380,6.01045,3327.6,3327.0,3.00564]
[1722356770557,3.00522,3327.6,3327.0,3.00564]
[1722356770760,0.566522,3327.5,3327.0,3.00564]
[1722356770967,3.571782,3327.5,3326.9,3.00579]
[1722356771164,3.00517,3327.6,3326.8,3.00586]
[1722356771353,3.00526,3327.5,3326.9,3.00575]
[1722356771739,3.00526,3327.5,3326.8,3.00583]
[1722356771740,3.00527,3327.5,3326.8,3.00583]
[1722356771936,3.00517,3327.6,3326.9,3.00574]
[1722356772167,1.095952,3327.6,3326.9,3.00574]
[1722356772357,2.66,3327.7,3326.9,3.00574]
[1722356773078,3.00539,3327.4,3326.6,3.006]
[1722356773278,3.00552,3327.3,3326.7,6.00593]
[1722356773844,3.00553,3327.2,3326.7,3.0]
[1722356774449,3.00543,3327.4,3326.7,3.0]
[1722356774769,3.00532,3327.5,3326.7,3.0]
[1722356774947,3.00532,3327.5,3326.7,3.600599]
[1722356775147,3.00539,3327.4,3326.7,3.600599]
[1722356775352,3.00549,3327.3,3326.7,3.0]
[1722356775575,3.00578,3327.0,3326.7,3.0]
[1722356775797,3.00577,3327.0,3326.5,3.0]
[1722356776170,3.00562,3327.1,3326.5,3.0]
[1722356776375,3.00571,3327.0,3326.5,3.0]
[1722356776586,3.00584,3326.9,3326.5,3.0]
[1722356776880,3.00577,3327.0,3326.3,3.00629]
[1722356777081,3.00577,3327.0,3326.4,3.0]
[1722356777561,3.00577,3327.0,3326.3,3.0]
[1722356778097,3.00577,3327.0,3326.4,0.16044737]
[1722356779015,3.00577,3327.0,3326.4,3.16669737]
[1722356779318,3.00556,3327.2,3326.6,2.2554]
[1722356779504,6.01082,3327.4,3326.7,3.00593]
[1722356779675,3.0054,3327.4,3326.7,3.16621144]
[1722356779880,3.00512,3327.7,3326.9,3.00574]
[1722356780127,3.00512,3327.7,3327.0,3.06580792]
[1722356780128,3.00521,3327.6,3327.0,3.06580792]
[1722356780278,3.00521,3327.6,3327.0,3.22592346]
[1722356780480,3.00507,3327.7,3327.0,0.22022346]
[1722356780829,2.66,3328.1,3327.0,0.22022346]
[1722356781000,3.0049,3327.9,3327.3,3.00536]
[1722356781207,0.51547381,3327.8,3327.4,35.15974698]
[1722356781402,3.0049,3327.9,3327.4,0.15974698]
[1722356781589,0.46851523,3327.8,3327.2,3.00552]
[1722356781789,3.0049,3327.9,3327.3,35.15974785]
[1722356781988,3.00533,3327.5,3327.3,0.15974785]
[1722356782200,3.00533,3327.5,3326.8,7.35]
[1722356782201,3.00544,3327.3,3326.8,7.35]
[1722356782377,3.00516,3327.6,3326.6,35.0]
[1722356782581,6.01093,3327.3,3326.5,3.00615]
[1722356782881,3.00563,3327.1,3326.6,0.16013039]
[1722356783237,3.00563,3327.1,3326.4,35.0]
[1722356783238,3.00583,3326.9,3326.4,35.0]
[1722356783382,3.00571,3327.0,3326.5,0.1601857]
[1722356783582,3.00581,3326.9,3326.5,0.1601857]
[1722356783787,0.566563,3327.1,3326.5,0.1601857]
[1722356783992,3.00604,3326.7,3326.3,7.35]
[1722356784190,3.00604,3326.7,3326.4,0.16029543]
[1722356784191,3.00614,3326.6,3326.4,0.16029543]
[1722356784398,3.00607,3326.6,3326.4,0.16029543]
[1722356784677,3.00607,3326.6,3326.0,35.0]
[1722356784878,3.00604,3326.7,3326.5,0.16034442]
[1722356785116,3.00604,3326.7,3325.9,2.3821]
[1722356785296,3.00621,3326.5,3325.9,5.3821]
[1722356785493,3.00621,3326.5,3325.9,40.3821]
[1722356786543,3.00621,3326.5,3325.9,43.38879]
[1722356786710,6.01245,3326.5,3325.9,40.3821]
[1722356787028,6.01245,3326.5,3325.6,5.33817]
[1722356787029,3.00639,3326.3,3325.6,5.33817]
[1722356787338,3.00643,3326.2,3325.4,3.00707]
[1722356787637,3.00643,3326.2,3325.5,35.0]
[1722356787804,6.01293,3326.2,3325.5,38.00706]
[1722356788012,3.00643,3326.2,3325.5,38.30831]
[1722356788212,3.00643,3326.2,3325.6,3.00695]
[1722356789048,3.00643,3326.2,3325.5,41.05607288]
[1722356789340,3.00643,3326.2,3325.6,3.0]
[1722356789499,5.630845,3326.5,3325.6,3.0]
[1722356789500,3.00666,3326.0,3325.6,3.0]
[1722356789845,3.00689,3325.7,3325.3,5.3312]
[1722356790040,3.00677,3325.9,3325.3,2.3312]
[1722356790276,3.00681,3325.8,3325.3,2.3312]
[1722356790502,3.00681,3325.8,3325.3,5.38021288]
[1722356790638,3.00681,3325.8,3325.4,3.0]
[1722356791298,3.0072,3325.4,3325.0,2.3562]
[1722356791584,3.00676,3325.9,3325.0,5.36367]
[1722356791790,4.15063245,3326.2,3325.1,35.837121]
[1722356792081,3.00698,3325.6,3325.1,35.837121]
[1722356793039,3.00698,3325.6,3325.2,0.16106375]
[1722356794033,3.00688,3325.7,3325.2,0.16106375]
[1722356794232,3.0069,3325.7,3325.2,0.16106375]
[1722356794550,3.00681,3325.8,3325.2,2.9720697]
[1722356794779,3.00688,3325.7,3325.2,2.9720697]
[1722356795387,3.00698,3325.6,3325.2,2.9720697]
[1722356795730,3.00687,3325.8,3325.2,2.9720697]
[1722356796091,3.00682,3325.8,3325.2,2.9720697]
[1722356796641,3.00689,3325.7,3325.2,2.9720697]
[1722356797964,3.00689,3325.7,3325.2,0.16106375]
[1722356798167,3.00689,3325.7,3325.2,35.16106375]
[1722356798493,3.00675,3325.9,3325.2,35.16106375]
[1722356798637,3.00681,3325.8,3325.2,38.16839375]
[1722356799239,3.00681,3325.8,3325.2,41.21740663]
[1722356799835,3.00681,3325.8,3325.2,38.21007663]
[1722356799938,3.00689,3325.7,3325.2,35.16106375]
[1722356800402,3.00689,3325.7,3325.2,0.16106375]
[1722356800698,3.00679,3325.8,3325.2,0.16106375]
[1722356802395,3.00679,3325.8,3325.2,3.16838375]
[1722356803061,3.00688,3325.7,3325.2,0.16106375]
[1722356804288,3.55649,3326.2,3325.6,3.00697]
[1722356804490,3.00653,3326.1,3325.5,3.00706]
[1722356804643,3.00653,3326.1,3325.7,0.16143583]
[1722356804839,3.00653,3326.1,3325.5,3.00706]
[1722356805095,3.00653,3326.1,3325.6,0.16149117]
[1722356805587,3.00628,3326.4,3325.7,2.3798]
[1722356805794,3.00628,3326.4,3325.8,35.0]
[1722356806096,3.00628,3326.4,3325.8,35.16138049]
[1722356806097,3.00643,3326.2,3325.8,35.16138049]
[1722356806942,3.00634,3326.3,3325.8,35.16138049]
[1722356808177,3.00634,3326.3,3325.8,0.16138049]
[1722356808590,3.00643,3326.2,3325.8,0.16138049]
[1722356810002,3.00622,3326.5,3325.8,0.16138049]
[1722356810163,0.55,3326.4,3325.8,0.16138049]
[1722356810380,3.00638,3326.3,3325.8,0.16138049]
[1722356811577,3.00643,3326.2,3325.8,0.16138049]
[1722356812106,3.00643,3326.2,3325.8,35.16138049]
[1722356812709,3.00643,3326.2,3325.8,0.16138049]
[1722356814184,3.00662,3326.0,3325.8,0.16138049]
[1722356814366,3.0067,3325.9,3325.8,0.16138049]
[1722356814709,3.0067,3325.9,3325.8,0.16132149]
[1722356815202,3.00654,3326.1,3325.5,6.00705]
[1722356815203,3.00656,3326.1,3325.5,6.00705]
[1722356815423,3.00656,3326.1,3325.8,0.16132149]
[1722356815705,3.00672,3325.9,3325.5,3.0]
[1722356816998,3.00649,3326.2,3325.5,3.0]
[1722356817211,0.55,3326.4,3325.5,3.0]
[1722356817416,3.00654,3326.1,3325.5,3.0]
[1722356817702,3.00672,3325.9,3325.4,5.4032]
[1722356817856,3.00672,3325.9,3325.5,35.0]
[1722356818251,3.00702,3325.6,3325.1,9.6087]
[1722356818474,3.00696,3325.7,3325.1,5.26611]
[1722356818700,3.00696,3325.7,3325.2,35.0]
[1722356820297,6.01392,3325.7,3325.2,35.0]
[1722356820512,3.00696,3325.7,3325.2,35.0]
[1722356820695,6.01392,3325.7,3325.2,35.0]
[1722356821195,3.00695,3325.7,3325.2,35.0]
[1722356821396,3.0068,3325.8,3325.2,38.00727]
[1722356821708,3.00674,3325.9,3325.3,3.00723]
[1722356821914,3.00682,3325.8,3325.3,3.00723]
[1722356822125,3.00667,3326.0,3325.3,6.0144]
[1722356822300,3.00667,3326.0,3325.4,38.60854]
[1722356822888,3.00667,3326.0,3325.5,0.16149205]
[1722356823498,3.00681,3325.8,3325.6,35.0]
[1722356823764,3.00681,3325.8,3325.7,0.16138137]
[1722356824197,3.00668,3326.0,3325.3,38.00723]
[1722356824198,3.00674,3325.9,3325.3,38.00723]
[1722356824399,3.00679,3325.8,3325.7,0.161429]
[1722356824559,3.00679,3325.8,3325.3,35.0]
[1722356824759,3.00679,3325.8,3325.7,0.161429]
[1722356824958,3.00679,3325.8,3325.3,35.0]
[1722356825170,3.00679,3325.8,3325.7,0.161429]
[1722356825393,3.00679,3325.8,3325.3,35.0]
[1722356825394,3.0067,3325.9,3325.3,38.00724]
[1722356825608,3.0067,3325.9,3325.7,0.161429]
[1722356825807,3.0067,3325.9,3325.3,38.00724]
[1722356825995,3.0068,3325.8,3325.3,38.00724]
[1722356827033,3.0068,3325.8,3325.3,35.0]
[1722356827575,3.0069,3325.7,3325.3,35.0]
[1722356828976,6.0135,3325.9,3325.3,35.0]
[1722356829176,3.47393821,3325.8,3325.3,35.0]
[1722356829411,3.00683,3325.8,3325.3,35.0]
[1722356830000,3.00689,3325.7,3325.3,35.0]
[1722356830921,3.00679,3325.8,3325.3,35.0]
[1722356831125,3.00679,3325.8,3325.3,41.05625288]
[1722356832237,3.00679,3325.8,3325.3,38.04901288]
[1722356832433,3.47390465,3325.7,3325.3,35.0]
[1722356832737,4.11589,3325.7,3325.3,35.0]
[1722356833129,1.109,3325.7,3325.3,35.0]
[1722356833333,3.00697,3325.6,3325.3,35.0]
[1722356834726,0.46715554,3325.5,3325.3,35.0]
[1722356834924,3.00685,3325.8,3325.3,35.0]
[1722356835127,0.4670823,3325.7,3325.3,38.04901288]
[1722356835334,4.1157,3325.9,3325.3,41.05621288]
[1722356835514,0.4670475,3325.8,3325.3,41.05621288]
[1722356835717,1.109,3325.9,3325.4,3.00715]
[1722356835922,0.46699059,3325.8,3325.5,3.00705]
[1722356836125,1.109,3325.9,3325.4,3.00715]
[1722356836126,4.11572,3325.9,3325.4,3.00715]
[1722356836540,0.46693718,3325.8,3325.4,3.00715]
[1722356836754,4.11572,3325.9,3325.4,3.00715]
[1722356837119,0.46696921,3325.8,3325.4,3.00715]
[1722356837316,4.11572,3325.9,3325.4,3.00715]
[1722356837511,3.47378202,3325.8,3325.3,41.05625288]
[1722356837849,3.0068,3325.8,3325.3,41.05625288]
[1722356838035,3.0068,3325.8,3325.4,0.16161547]
[1722356838231,1.109,3325.7,3325.4,0.16161547]
[1722356838749,0.46710758,3325.6,3325.4,0.16161547]
[1722356839044,1.109,3325.7,3325.4,0.16161547]
[1722356839287,0.46714103,3325.6,3325.4,0.16161547]
[1722356839434,3.0068,3325.8,3325.4,0.16161547]
[1722356839633,1.109,3325.9,3325.4,3.16870547]
[1722356839835,0.302845,3325.8,3325.4,3.16870547]
[1722356840022,4.11574,3325.9,3325.4,0.16161547]
[1722356840228,0.30285364,3325.8,3325.4,0.16161547]
[1722356840436,4.11574,3325.9,3325.4,0.16161547]
[1722356840642,0.3029948,3325.8,3325.4,0.16161547]
[1722356840839,3.00679,3325.8,3325.4,0.16161547]
[1722356841318,3.00679,3325.8,3325.5,35.0]
[1722356841518,3.00679,3325.8,3325.6,0.16150478]
[1722356842657,3.00679,3325.8,3325.4,35.0]
[1722356842824,3.00679,3325.8,3325.7,0.16144944]
[1722356843041,3.30979523,3325.8,3325.4,35.0]
[1722356843249,3.00679,3325.8,3325.7,0.16144944]
[1722356843448,3.00679,3325.8,3325.4,35.0]
[1722356843449,3.30979446,3325.8,3325.4,35.0]
[1722356843747,3.00679,3325.8,3325.7,0.16144944]
[1722356843956,0.30296568,3325.8,3325.4,35.0]
[1722356844246,4.11571,3325.9,3325.7,0.16144944]
[1722356844447,3.30972859,3325.8,3325.4,35.0]
[1722356844756,3.00679,3325.8,3325.4,35.0]
[1722356845390,4.11571,3325.9,3325.4,35.0]
[1722356845589,4.11571,3325.9,3325.4,38.00715]
[1722356845809,7.12247,3325.9,3325.4,35.0]
[1722356845946,0.30291942,3325.8,3325.4,35.0]
[1722356846309,4.11571,3325.9,3325.4,35.0]
[1722356846604,0.30293598,3325.8,3325.4,35.0]
[1722356846745,4.11571,3325.9,3325.4,38.04901288]
[1722356846945,0.3029778,3325.8,3325.4,38.04901288]
[1722356847193,4.11571,3325.9,3325.4,38.04901288]
[1722356847396,0.30299946,3325.8,3325.4,38.04901288]
[1722356847602,4.11571,3325.9,3325.4,41.05615288]
[1722356847769,3.00649,3326.2,3325.5,3.60610407]
[1722356847945,1.109,3325.9,3325.6,5.34866]
[1722356848298,0.30291678,3325.8,3325.6,2.3417]
[1722356848513,1.109,3325.9,3325.6,2.3417]
[1722356849112,0.30303492,3325.8,3325.5,0.59911407]
[1722356849405,4.11571,3325.9,3325.4,35.0]
[1722356849581,1.109,3325.7,3325.4,35.0]
[1722356851206,1.109,3325.5,3325.3,2.3417]
[1722356852799,1.109,3325.6,3325.3,2.3417]
[1722356853094,1.109,3325.6,3325.4,0.1615973]
[1722356854054,3.0068,3325.8,3325.4,0.1615973]
[1722356854348,1.41195295,3325.7,3325.4,0.1615973]
[1722356854489,1.109,3325.7,3325.4,0.1615973]
[1722356855633,0.30302012,3325.6,3325.4,0.1615973]
[1722356855801,1.109,3325.7,3325.4,0.71265103]
[1722356855961,0.30298882,3325.6,3325.4,0.1615973]
[1722356856302,4.11588,3325.7,3325.4,0.1615973]
[1722356857157,1.109,3325.7,3325.4,0.1615973]
[1722356857357,7.39,3326.3,3325.8,5.46924]
[1722356857552,0.30282385,3326.2,3325.8,5.52936962]
[1722356857815,6.01227,3326.6,3325.9,0.81913558]
[1722356857957,0.15307805,3326.5,3325.9,0.81913558]
[1722356858163,3.15932805,3326.4,3325.9,0.81913558]
[1722356858393,0.15307805,3326.3,3325.9,0.81913558]
[1722356858660,4.11525,3326.4,3326.0,0.62883556]
[1722356858859,0.15307293,3326.3,3325.8,2.52262967]
[1722356859071,3.00635,3326.3,3326.1,0.15506406]
[1722356859275,3.00635,3326.3,3325.8,2.52262967]
[1722356859502,3.00635,3326.3,3326.2,0.15500874]
[1722356859711,3.00635,3326.3,3325.8,2.52262967]
[1722356859912,3.00635,3326.3,3326.2,0.15500874]
[1722356860057,4.11525,3326.4,3325.9,0.55295097]
[1722356860058,3.00644,3326.2,3325.9,0.55295097]
[1722356860259,1.109,3326.0,3325.8,2.52262967]
[1722356860457,1.109,3326.0,3325.8,2.4625]
[1722356861096,4.11545,3326.2,3325.9,0.15515895]
[1722356861667,1.109,3326.0,3325.9,0.15515895]
[1722356862407,4.11534,3326.3,3325.9,0.41692485]
[1722356862612,1.109,3326.1,3325.9,0.41692485]
[1722356862960,4.11552,3326.1,3325.9,0.41692485]
[1722356863285,1.109,3326.1,3325.9,0.41692485]
[1722356864161,4.11555,3326.1,3325.9,0.41692485]
[1722356864764,1.109,3326.1,3325.9,0.41692485]
[1722356865266,4.11536,3326.3,3326.0,0.28794248]
[1722356865698,4.11536,3326.3,3326.1,0.15024896]
[1722356866020,1.109,3326.3,3326.1,0.15024896]
[1722356866501,4.11538,3326.3,3326.1,0.15024896]
[1722356866663,7.12178,3326.3,3326.1,0.15024896]
[1722356866868,4.11538,3326.3,3326.1,0.15024896]
[1722356867269,3.00653,3326.1,3325.8,2.4625]
[1722356867606,1.109,3326.0,3325.8,2.4625]
[1722356867773,1.109,3326.0,3325.8,37.4625]
[1722356867978,1.109,3326.0,3325.9,0.14518925]
[1722356868306,7.533773,3326.0,3325.9,0.14518925]
[1722356868466,7.82531051,3326.0,3325.9,0.14518925]
[1722356868664,3.00698,3325.6,3325.3,2.3192]
[1722356868993,1.109,3325.4,3325.3,2.3192]
[1722356871267,1.109,3325.4,3325.0,38.30897]
[1722356871469,1.109,3325.4,3325.0,43.76448288]
[1722356871665,1.109,3325.4,3325.0,40.75701288]
[1722356871902,1.109,3325.2,3325.0,37.4065]
[1722356875003,1.109,3325.2,3325.0,2.4065]
[1722356875579,4.11615,3325.4,3325.1,35.0]
[1722356877989,1.109,3325.4,3325.1,35.0]
[1722356878188,4.116,3325.6,3325.1,35.0]
[1722356878483,1.109,3325.6,3325.1,38.30888]
[1722356879923,1.109,3325.4,3325.1,35.3015]
[1722356880126,1.109,3325.4,3325.1,35.0]
[1722356880425,4.11621,3325.4,3325.1,35.0]
[1722356880611,1.109,3325.4,3325.1,35.0]
[1722356883114,1.109,3325.4,3325.2,0.14592362]
[1722356884148,4.1162,3325.4,3325.2,0.14592362]
[1722356887371,1.109,3325.4,3325.2,0.14592362]
[1722356887715,4.11621,3325.4,3325.2,0.14592362]
[1722356888015,1.109,3325.4,3325.2,0.14592362]
[1722356888225,4.1162,3325.4,3325.2,0.14592362]
[1722356890349,4.1162,3325.4,3325.0,2.708]
[1722356890645,4.1162,3325.4,3325.1,35.145997]
[1722356891491,3.00728,3325.3,3325.1,35.145997]
[1722356891693,1.109,3325.2,3325.1,0.145997]
[1722356892029,4.1162,3325.4,3325.0,2.4065]
[1722356892148,4.1162,3325.4,3325.1,0.145997]
[1722356892347,4.1162,3325.4,3325.0,2.4065]
[1722356892695,4.1162,3325.4,3325.1,0.145997]
[1722356893044,4.1162,3325.4,3325.0,2.4065]
[1722356893371,7.12342,3325.4,3325.1,0.145997]
[1722356893578,3.00725,3325.3,3325.0,2.4065]
[1722356893745,3.00725,3325.3,3325.1,35.145997]
[1722356894585,1.109,3325.2,3325.1,35.145997]
[1722356894887,4.11633,3325.2,3325.1,0.145997]
[1722356895248,4.11633,3325.2,3324.8,35.0]
[1722356895568,4.11633,3325.2,3324.8,38.04901288]
[1722356895768,4.11633,3325.2,3324.9,0.14610772]
[1722356896292,3.00743,3325.1,3324.9,0.14610772]
[1722356896595,1.109,3325.2,3324.7,2.47]
[1722356896743,1.109,3325.2,3325.0,35.14605236]
[1722356897056,4.11634,3325.2,3325.0,35.14605236]
[1722356897260,3.00742,3325.1,3325.0,35.14605236]
[1722356898066,1.109,3325.2,3325.0,35.14605236]
[1722356898977,4.11638,3325.2,3325.0,35.14605236]
[1722356899786,4.11638,3325.2,3325.0,0.14605236]
[1722356899959,3.00742,3325.1,3324.7,2.47]
[1722356900159,3.00742,3325.1,3324.8,35.14616309]
[1722356900969,1.109,3325.0,3324.8,35.14616309]
[1722356902155,3.00742,3325.1,3324.8,35.14616309]
[1722356902783,3.00742,3325.1,3324.8,38.19517597]
[1722356903798,6.01491,3325.1,3324.8,38.19517597]
[1722356903987,1.109,3325.0,3324.8,35.14616309]
[1722356904160,6.0152,3324.9,3324.8,0.14616309]
[1722356904364,3.0077,3324.8,3324.2,3.00818]
[1722356904602,1.109,3324.5,3324.3,35.99217384]
[1722356905322,3.00726,3325.3,3324.7,3.00774]
[1722356905600,3.00726,3325.3,3324.5,3.00792]
[1722356905601,3.0072,3325.4,3324.8,3.21402196]
[1722356905834,3.0072,3325.4,3324.9,0.3214022]
[1722356906002,3.0072,3325.4,3324.9,35.3214022]
[1722356906210,1.109,3325.3,3324.9,35.76907079]
[1722356906371,1.109,3325.3,3324.9,35.46757079]
[1722356906572,1.109,3325.3,3325.0,2.48105175]
[1722356906875,1.109,3325.3,3325.1,0.14605787]
[1722356907108,4.11625,3325.3,3325.1,0.14605787]
[1722356907315,4.11625,3325.3,3324.9,0.3214022]
[1722356907525,4.11625,3325.3,3325.2,0.14600251]
[1722356907691,4.11625,3325.3,3324.8,0.3015]
[1722356907890,4.11625,3325.3,3324.8,0.933203]
[1722356908091,4.11625,3325.3,3324.9,0.14616859]
[1722356908328,1.109,3325.1,3324.9,0.14616859]
[1722356908626,1.109,3325.1,3324.8,0.3015]
[1722356908831,1.109,3325.1,3325.0,0.14611323]
[1722356909040,1.109,3325.1,3324.9,0.14616859]
[1722356909191,1.109,3325.1,3325.0,0.14611323]
[1722356909390,1.109,3325.1,3324.7,3.30921]
[1722356909593,1.109,3325.1,3324.8,0.14622396]
[1722356909823,1.109,3324.9,3324.8,0.14622396]
[1722356910331,1.109,3324.9,3324.4,3.00799]
[1722356910533,1.109,3324.9,3324.8,0.14622396]
[1722356910925,1.109,3324.9,3324.5,0.3015]
[1722356911123,1.109,3324.9,3324.8,0.14622396]
[1722356911426,1.109,3325.1,3324.8,0.14622396]
[1722356911626,1.109,3325.1,3324.6,5.76067]
[1722356911831,1.109,3325.1,3324.9,0.14616859]
[1722356912044,1.109,3325.1,3324.6,6.637536]
[1722356912223,1.109,3325.1,3325.0,0.14611323]
[1722356912423,1.109,3325.1,3324.6,5.76067]
[1722356912731,1.109,3325.1,3325.0,0.14611323]
[1722356912933,1.109,3325.1,3324.7,3.30924]
[1722356913099,1.109,3325.1,3325.0,0.14611996]
[1722356913296,4.11643,3325.1,3324.7,0.3015]
[1722356913713,4.11643,3325.1,3324.8,0.14623069]
[1722356914068,1.109,3325.1,3324.8,0.14623069]
[1722356914377,1.109,3325.5,3325.1,3.00741]
[1722356914522,4.11611,3325.5,3324.9,3.0076]
[1722356914746,4.11611,3325.5,3325.2,0.14600924]
[1722356914747,1.109,3325.5,3325.2,0.14600924]
[1722356914936,4.11608,3325.5,3325.2,0.14600924]
[1722356915137,1.109,3325.3,3324.8,3.00769]
[1722356915555,1.109,3325.3,3324.9,0.14617532]
[1722356916242,4.11624,3325.3,3324.9,0.14617532]
[1722356916426,1.109,3325.0,3324.7,0.3015]
[1722356916773,1.109,3325.0,3324.7,3.30928]
[1722356917293,1.109,3324.8,3324.5,7.35]
[1722356917605,1.109,3324.6,3324.5,7.35]
[1722356922084,1.109,3324.6,3324.2,0.3015]
[1722356923828,1.109,3324.6,3324.2,3.30972]
[1722356925390,1.109,3324.6,3324.3,35.0]
[1722356927324,4.1169,3324.6,3324.3,35.0]
[1722356928107,1.109,3324.4,3324.3,35.0]
[1722356931445,1.109,3324.4,3324.0,3.3099]
[1722356931644,4.11706,3324.4,3324.0,1.167859]
[1722356931943,1.109,3324.4,3324.1,35.0]
[1722356933553,4.11706,3324.4,3324.1,35.0]
[1722356934438,4.11724,3324.2,3324.1,35.0]
[1722356934740,3.00844,3324.0,3323.5,2.273]
[1722356935038,4.11753,3323.9,3323.5,1.263199]
[1722356935238,4.11753,3323.9,3323.6,35.0]
[1722356935612,3.00842,3324.0,3323.6,35.3015]
[1722356935833,1.109,3323.9,3323.7,2.38492795]
[1722356936016,3.0086,3323.8,3323.4,7.35]
[1722356936409,4.11752,3323.9,3323.5,35.0]
[1722356937884,3.0086,3323.8,3323.5,35.0]